bitfinex-derivatives/quotes_SOLF0:USTF0_20250818
["timestamp","ask_amount","ask_price","bid_price","bid_amount"]
[1755503967903,4.04700782,180.62,180.57,3.05]
[1755503968108,4.04837256,180.61,180.57,10.13821967]
[1755503968302,6.15593044,180.67,180.58,2.91]
[1755503968502,9.90982541,180.66,180.58,2.91]
[1755503968704,135.9,180.68,180.58,2.91]
[1755503968705,5.4325022,180.65,180.58,2.91]
[1755503968906,142.05593044,180.68,180.58,2.91]
[1755503968907,4.04905119,180.64,180.58,2.91]
[1755503969102,4.04905119,180.63,180.58,2.91]
[1755503969304,4.04905119,180.62,180.58,2.91]
[1755503969503,142.05593044,180.68,180.58,2.91]
[1755503969702,9.90730042,180.67,180.58,2.91]
[1755503969910,5.42992581,180.66,180.58,2.91]
[1755503970107,5.42992581,180.65,180.58,2.91]
[1755503970406,5.42998948,180.64,180.58,2.91]
[1755503970704,4.04657624,180.63,180.58,2.91]
[1755503970909,4.04657624,180.62,180.58,2.91]
[1755503971206,4.04657624,180.61,180.58,2.91]
[1755503971502,4.04657624,180.6,180.58,2.91]
[1755503971708,1.38347692,180.66,180.58,2.91]
[1755503972005,9.91031736,180.65,180.58,2.91]
[1755503972207,5.43143695,180.64,180.58,2.91]
[1755503972408,5.43143695,180.63,180.58,2.91]
[1755503972598,4.04796003,180.62,180.58,2.91]
[1755503972799,4.04796003,180.61,180.58,2.91]
[1755503973010,4.04796003,180.6,180.58,2.91]
[1755503973205,1.38347692,180.66,180.58,2.91]
[1755503973504,9.91001156,180.65,180.58,2.91]
[1755503973704,5.43134611,180.64,180.58,2.91]
[1755503973904,5.43134611,180.63,180.58,2.91]
[1755503974205,4.04786919,180.62,180.58,2.91]
[1755503974504,4.04786919,180.61,180.58,2.91]
[1755503974705,4.04786919,180.6,180.58,2.91]
[1755503974905,1.38347692,180.66,180.58,2.91]
[1755503975104,9.91051745,180.65,180.58,2.91]
[1755503975310,5.43164079,180.64,180.58,2.91]
[1755503975511,5.43164079,180.63,180.58,2.91]
[1755503975712,4.04816387,180.62,180.58,2.91]
[1755503975913,4.04816387,180.61,180.58,2.91]
[1755503976114,4.04816387,180.6,180.58,2.91]
[1755503976413,7.53940736,180.66,180.58,2.91]
[1755503976616,9.91066166,180.65,180.58,2.91]
[1755503976914,5.43200442,180.64,180.58,2.91]
[1755503977112,7.53940736,180.66,180.58,2.91]
[1755503977113,5.43200442,180.63,180.58,2.91]
[1755503977313,4.0485275,180.62,180.58,2.91]
[1755503977514,4.0485275,180.61,180.58,2.91]
[1755503977713,4.0485275,180.6,180.58,2.91]
[1755503977910,1.38347692,180.66,180.58,2.91]
[1755503978118,9.90831197,180.65,180.58,2.91]
[1755503978315,5.43089475,180.64,180.58,2.91]
[1755503978510,4.04743078,180.63,180.58,2.91]
[1755503978719,4.04743078,180.62,180.58,2.91]
[1755503978906,4.04743078,180.61,180.58,2.91]
[1755503979106,1.38347692,180.66,180.58,2.91]
[1755503979419,5.4310532,180.65,180.58,2.91]
[1755503979613,5.4310532,180.64,180.58,2.91]
[1755503979915,4.04760219,180.63,180.58,2.91]
[1755503980117,4.04760219,180.62,180.58,2.91]
[1755503980320,4.04760219,180.61,180.58,2.91]
[1755503980617,4.04868562,180.6,180.58,2.91]
[1755503980920,7.53940736,180.66,180.58,2.91]
[1755503981116,9.91079331,180.65,180.58,2.91]
[1755503981316,9.91129915,180.64,180.58,2.91]
[1755503981521,5.43215734,180.63,180.58,2.91]
[1755503981717,4.04868041,180.62,180.58,2.91]
[1755503981914,4.04868041,180.61,180.58,2.91]
[1755503982117,4.04868041,180.6,180.58,2.91]
[1755503982317,7.53940736,180.66,180.58,2.91]
[1755503982516,9.91253398,180.65,180.58,2.91]
[1755503982716,9.91253398,180.64,180.58,2.91]
[1755503982914,5.43304365,180.63,180.58,2.91]
[1755503983114,4.04956672,180.62,180.58,2.91]
[1755503983314,4.04956672,180.61,180.58,2.91]
[1755503983519,4.04956672,180.6,180.58,2.91]
[1755503983718,4.04956672,180.59,180.58,2.91]
[1755503986122,7.53940736,180.66,180.58,2.91]
[1755503986326,9.91357165,180.65,180.58,2.91]
[1755503986527,5.43352598,180.64,180.58,2.91]
[1755503986719,5.43352598,180.63,180.58,2.91]
[1755503987019,4.05006191,180.62,180.58,2.91]
[1755503987222,4.05006191,180.61,180.58,2.91]
[1755503987414,4.05006191,180.6,180.58,2.91]
[1755503987616,7.53940736,180.66,180.58,2.91]
[1755503987817,9.91317624,180.65,180.58,2.91]
[1755503988116,5.43339522,180.64,180.58,2.91]
[1755503988317,4.04993115,180.63,180.58,2.91]
[1755503988516,4.04993115,180.62,180.58,2.91]
[1755503988724,4.04993115,180.61,180.58,2.91]
[1755503988923,1.38347692,180.66,180.58,2.91]
[1755503989118,9.91045979,180.65,180.58,2.91]
[1755503989416,5.43212745,180.64,180.58,2.91]
[1755503989622,4.04876483,180.63,180.58,2.91]
[1755503989824,4.04876483,180.62,180.58,2.91]
[1755503990020,4.04876483,180.61,180.58,2.91]
[1755503990220,4.04963762,180.6,180.58,2.91]
[1755503990518,7.53940736,180.66,180.58,2.91]
[1755503990824,9.91217952,180.65,180.58,2.91]
[1755503991127,9.91217952,180.64,180.58,2.91]
[1755503991324,5.43302537,180.63,180.58,2.91]
[1755503991523,5.43302537,180.62,180.58,2.91]
[1755503991724,4.04957371,180.61,180.58,2.91]
[1755503992022,4.04957371,180.6,180.58,2.91]
[1755503992222,4.04957371,180.59,180.58,2.91]
[1755503994428,4.05468521,180.59,180.58,2.91]
[1755503994924,4.05468521,180.59,180.58,8.6344]
[1755503995326,4.05468521,180.59,180.58,3.1]
[1755503995927,7.53940736,180.66,180.58,3.1]
[1755503996130,9.92455303,180.65,180.58,3.1]
[1755503996429,5.43852651,180.64,180.58,3.1]
[1755503996728,5.43852651,180.63,180.58,3.1]
[1755503996926,4.05512612,180.62,180.58,3.1]
[1755503997125,4.05512612,180.61,180.58,3.1]
[1755503997326,4.05512612,180.6,180.59,3.1]
[1755503997828,1.38347692,180.66,180.59,3.1]
[1755503998028,9.91987719,180.65,180.61,3.1]
[1755503998231,5.43442963,180.64,180.61,3.1]
[1755503998430,4.05105567,180.63,180.61,3.1]
[1755503998630,4.05105567,180.62,180.61,3.1]
[1755504000126,1.38347692,180.66,180.57,10.13831967]
[1755504000333,1.38347692,180.66,180.58,3.1]
[1755504001035,5.86580408,180.65,180.58,3.1]
[1755504001234,5.86580408,180.64,180.58,3.1]
[1755504001526,4.04973768,180.63,180.58,3.1]
[1755504001740,4.04973768,180.62,180.58,3.1]
[1755504002030,1.38347692,180.66,180.58,3.1]
[1755504002232,4.06170422,180.65,180.58,3.1]
[1755504002434,4.06170422,180.64,180.58,3.1]
[1755504002623,1.38347692,180.66,180.58,3.1]
[1755504002624,4.06170422,180.63,180.58,3.1]
[1755504002824,4.06170422,180.62,180.51,9.32596217]
[1755504003025,1.38347692,180.66,180.53,9.32596217]
[1755504003229,4.0604149,180.65,180.53,3.1]
[1755504003534,4.0604149,180.64,180.61,3.1]
[1755504003734,4.0604149,180.63,180.61,3.1]
[1755504003936,1.38347692,180.66,180.61,3.1]
[1755504005231,4.05736904,180.65,180.61,3.1]
[1755504005432,4.05736904,180.64,180.61,3.1]
[1755504005727,4.05736904,180.63,180.61,3.1]
[1755504005930,1.38347692,180.66,180.53,3.1]
[1755504006134,5.43983518,180.65,180.53,3.1]
[1755504006331,4.05648747,180.64,180.53,3.1]
[1755504006638,4.05648747,180.63,180.53,3.1]
[1755504006840,4.05648747,180.63,180.5,9.32596217]
[1755504006841,4.05648747,180.62,180.56,3.1]
[1755504007030,4.05648747,180.61,180.56,3.1]
[1755504007231,4.05648747,180.6,180.56,3.1]
[1755504007435,7.55718723,180.66,180.56,3.1]
[1755504007638,9.90969499,180.65,180.56,3.1]
[1755504007828,5.44163141,180.64,180.56,3.1]
[1755504008032,5.44163141,180.63,180.56,8.635]
[1755504008235,4.05816852,180.62,180.5,3.1]
[1755504008532,4.05816852,180.61,180.55,3.1]
[1755504008736,4.05816852,180.6,180.55,3.1]
[1755504008937,4.05816852,180.59,180.55,3.1]
[1755504009237,1.38347692,180.66,180.55,3.1]
[1755504009428,9.9116962,180.65,180.55,3.1]
[1755504009628,9.9116962,180.64,180.55,3.1]
[1755504009828,5.44258569,180.63,180.55,3.1]
[1755504010035,5.44263642,180.62,180.55,3.1]
[1755504010240,4.05910926,180.61,180.55,3.1]
[1755504010443,4.05910926,180.6,180.55,3.1]
[1755504010637,7.55718723,180.66,180.55,3.1]
[1755504010843,9.91343077,180.65,180.55,3.1]
[1755504011144,9.91343077,180.64,180.55,3.1]
[1755504011344,5.44352694,180.63,180.55,3.1]
[1755504011642,5.44352694,180.62,180.56,3.1]
[1755504011842,4.05994904,180.61,180.56,3.1]
[1755504012040,1.38347692,180.66,180.56,3.1]
[1755504012241,9.9138939,180.65,180.56,3.1]
[1755504012439,5.44372054,180.64,180.56,3.1]
[1755504012640,4.06027054,180.63,180.56,3.1]
[1755504012951,4.06027054,180.62,180.58,3.1]
[1755504013241,4.06027054,180.61,180.58,3.13653509]
[1755504013442,1.38347692,180.66,180.58,3.13653509]
[1755504013639,9.9136516,180.65,180.58,3.13653509]
[1755504013841,1.38347692,180.66,180.58,3.13653509]
[1755504013842,5.44346786,180.64,180.58,3.13653509]
[1755504014038,4.06005524,180.63,180.58,3.13653509]
[1755504014240,4.06005524,180.62,180.58,3.13653509]
[1755504014442,1.38347692,180.66,180.58,3.13653509]
[1755504014646,5.44339448,180.65,180.58,3.13653509]
[1755504014834,4.06000858,180.64,180.58,3.13653509]
[1755504015034,4.06000858,180.63,180.58,3.13653509]
[1755504015237,4.06000858,180.62,180.58,8.67073509]
[1755504015439,1.38347692,180.66,180.59,3.1]
[1755504015651,5.44130599,180.65,180.59,3.1]
[1755504015851,4.05792038,180.64,180.59,3.1]
[1755504016150,4.05792038,180.63,180.59,3.1]
[1755504016353,4.05792038,180.62,180.59,3.1]
[1755504016548,1.38347692,180.66,180.59,3.1]
[1755504016753,5.4414836,180.65,180.59,3.1]
[1755504017059,4.05809743,180.64,180.59,3.1]
[1755504017254,4.05809743,180.63,180.59,3.1]
[1755504017452,4.05809743,180.62,180.59,3.1]
[1755504017652,4.05758405,180.61,180.59,3.1]
[1755504017854,1.38347692,180.66,180.59,3.1]
[1755504018057,5.44118544,180.65,180.59,3.1]
[1755504018262,4.0577731,180.64,180.59,3.1]
[1755504018558,4.0577731,180.63,180.59,3.1]
[1755504018751,4.0577731,180.62,180.59,3.1]
[1755504019055,1.38347692,180.66,180.59,3.1]
[1755504019246,5.44251524,180.65,180.59,3.1]
[1755504019448,4.05912937,180.64,180.59,3.1]
[1755504019653,4.05912937,180.63,180.59,3.1]
[1755504019852,1.38347692,180.66,180.59,3.1]
[1755504020045,5.44290317,180.65,180.59,3.1]
[1755504020249,4.05956828,180.64,180.59,3.1]
[1755504020457,4.05956828,180.63,180.59,3.1]
[1755504020655,1.38347692,180.66,180.59,3.1]
[1755504020855,4.05995598,180.65,180.59,3.1]
[1755504021056,4.05995598,180.64,180.59,3.1]
[1755504021259,4.05995598,180.63,180.59,3.1]
[1755504021458,1.38347692,180.66,180.59,3.1]
[1755504021757,4.06106722,180.65,180.59,3.1]
[1755504021959,4.06106722,180.64,180.59,3.1]
[1755504022254,4.06106722,180.63,180.59,3.1]
[1755504022452,4.06106722,180.62,180.59,3.1]
[1755504022653,1.38347692,180.66,180.59,3.1]
[1755504022855,5.44426207,180.65,180.59,3.1]
[1755504023160,4.06091341,180.64,180.59,3.1]
[1755504023363,4.06091341,180.64,180.58,0.03653509]
[1755504023364,4.06091341,180.63,180.6,2.95]
[1755504023656,1.38347692,180.66,180.6,2.95]
[1755504023847,5.44428496,180.65,180.59,2.95]
[1755504024053,9.91544084,180.64,180.58,0.03653509]
[1755504024248,5.44428496,180.63,180.59,2.95]
[1755504024448,4.0608861,180.62,180.59,2.95]
[1755504024653,4.0608861,180.62,180.58,0.03653509]
[1755504024654,4.0608861,180.61,180.58,0.03653509]
[1755504024846,4.0608861,180.6,180.58,0.03653509]
[1755504025054,1.38347692,180.66,180.58,0.03653509]
[1755504025250,9.91509364,180.65,180.58,0.03653509]
[1755504025562,5.44421185,180.64,180.59,2.95]
[1755504025862,1.38347692,180.66,180.58,0.03653509]
[1755504025863,5.44421185,180.63,180.58,2.98653509]
[1755504026058,5.44421185,180.62,180.58,0.03653509]
[1755504026360,4.06068507,180.61,180.58,0.03653509]
[1755504026560,4.0602938,180.6,180.59,2.95]
[1755504027756,1.38347692,180.66,180.59,2.95]
[1755504027956,5.4444367,180.65,180.59,2.95]
[1755504028158,4.06099891,180.64,180.59,2.95]
[1755504028361,4.06099891,180.63,180.59,2.95]
[1755504028659,4.06099891,180.62,180.59,2.95]
[1755504028860,1.38347692,180.66,180.59,8.4841]
[1755504029062,4.06467477,180.65,180.6,2.95]
[1755504029364,1.38347692,180.66,180.64,5.5324]
[1755504029565,371.86,180.73,180.65,2.95]
[1755504029764,5.44833232,180.72,180.65,2.95]
[1755504029965,4.06550027,180.71,180.65,2.95]
[1755504030165,4.06550027,180.7,180.65,2.95]
[1755504030363,371.86,180.73,180.65,2.95]
[1755504030565,4.06344114,180.72,180.65,2.95]
[1755504030867,4.06344114,180.71,180.65,2.95]
[1755504031063,371.86,180.73,180.65,2.95]
[1755504031064,4.06344114,180.7,180.67,0.03790886]
[1755504031365,371.86,180.73,180.69,2.95]
[1755504031565,4.06029841,180.72,180.67,2.98790886]
[1755504031759,4.06029841,180.71,180.68,2.95]
[1755504031959,4.06029841,180.7,180.68,2.95]
[1755504032158,4.06029841,180.69,180.68,2.95]
[1755504034563,371.86,180.73,180.68,2.95]
[1755504034768,4.05731752,180.72,180.68,2.95]
[1755504034965,4.05731752,180.71,180.69,2.95]
[1755504035162,4.05731752,180.7,180.69,2.95]
[1755504035367,4.05731752,180.7,180.67,0.03790886]
[1755504035562,142.89371031,180.77,180.67,0.03790886]
[1755504035761,8.52020756,180.76,180.67,0.03790886]
[1755504035960,4.05728382,180.75,180.68,2.95]
[1755504036164,4.05728382,180.74,180.68,2.95]
[1755504036365,4.05728382,180.73,180.68,2.95]
[1755504036565,136.6,180.76,180.71,2.95]
[1755504036769,4.05580227,180.75,180.71,2.95]
[1755504036969,4.05580227,180.74,180.72,2.95]
[1755504037163,4.05580227,180.73,180.72,2.95]
[1755504039373,136.6,180.76,180.72,2.95]
[1755504039576,4.05135008,180.75,180.72,2.95]
[1755504039870,4.05135008,180.74,180.72,2.95]
[1755504040070,136.48,180.76,180.72,2.95]
[1755504040272,4.05045565,180.75,180.72,2.95]
[1755504040475,4.05045565,180.74,180.72,2.95]
[1755504040767,136.48,180.76,180.73,2.95]
[1755504040975,4.05060309,180.75,180.72,2.95]
[1755504041174,136.48,180.76,180.72,2.95]
[1755504041476,4.04944519,180.75,180.72,2.95]
[1755504041773,136.48,180.76,180.72,2.95]
[1755504041969,4.04905679,180.75,180.72,2.95]
[1755504042169,136.48,180.76,180.72,2.95]
[1755504045673,16.61,180.81,180.72,2.95]
[1755504045871,141.82791009,180.8,180.72,2.95]
[1755504046072,4.04536293,180.79,180.72,2.95]
[1755504046374,4.04536293,180.79,180.75,2.95]
[1755504046674,4.04536293,180.79,180.76,2.95]
[1755504046872,4.04536293,180.79,180.74,0.04037025]
[1755504047171,4.04536293,180.79,180.74,2.99037025]
[1755504047369,4.04536293,180.79,180.76,2.95]
[1755504051380,4.04536293,180.79,180.74,0.04037025]
[1755504051680,4.04536293,180.79,180.77,2.95]
[1755504051874,136.4,180.8,180.75,2.95]
[1755504053581,4.03939198,180.79,180.75,2.95]
[1755504053776,136.4,180.8,180.75,2.95]
[1755504054180,371.84,180.82,180.75,2.95]
[1755504054381,136.3,180.81,180.75,2.95]
[1755504064095,4.03603239,180.8,180.75,2.95]
[1755504064289,136.3,180.81,180.75,2.95]
[1755504064485,4.03656735,180.8,180.76,3.11]
[1755504064790,136.3,180.81,180.76,3.11]
[1755504064981,4.03637438,180.8,180.76,3.11]
[1755504065186,136.3,180.81,180.76,3.11]
[1755504065488,4.03712217,180.8,180.74,0.04037025]
[1755504065688,136.3,180.81,180.78,3.11]
[1755504065887,4.03768006,180.8,180.74,0.04037025]
[1755504066082,371.84,180.82,180.78,3.11]
[1755504066393,140.23819544,180.81,180.78,3.11]
[1755504066588,4.03819544,180.8,180.78,3.11]
[1755504066888,136.2,180.81,180.78,3.11]
[1755504067188,4.03829194,180.8,180.78,3.11]
[1755504067388,136.2,180.81,180.78,3.11]
[1755504067588,4.03932791,180.8,180.78,3.11]
[1755504067790,136.2,180.81,180.78,3.11]
[1755504067992,4.03932791,180.8,180.78,3.11]
[1755504068192,136.2,180.81,180.78,3.11]
[1755504068392,4.04033479,180.8,180.78,3.11]
[1755504068694,136.2,180.81,180.76,3.11]
[1755504068891,4.04038241,180.8,180.75,0.03516077]
[1755504069092,136.2,180.81,180.75,0.03516077]
[1755504069093,136.2,180.81,180.76,3.11]
[1755504069295,4.04237047,180.8,180.76,3.11]
[1755504069588,4.04237047,180.79,180.76,3.11]
[1755504069792,136.12,180.78,180.76,3.11]
[1755504070194,136.12,180.78,180.75,0.03516077]
[1755504070394,136.12,180.78,180.77,3.11]
[1755504074999,6.17371031,180.87,180.77,3.11]
[1755504075200,146.39356161,180.86,180.77,3.11]
[1755504075500,9.93356161,180.85,180.77,3.11]
[1755504075694,5.43602706,180.84,180.8,0.03722584]
[1755504075899,140.5138851,180.83,180.81,3.11]
[1755504076095,4.0538851,180.82,180.81,3.11]
[1755504077893,4.0538851,180.82,180.8,0.03722584]
[1755504078098,4.0538851,180.81,180.8,3.14722584]
[1755504078600,4.0538851,180.81,180.8,0.03722584]
[1755504078797,136.46,180.83,180.8,0.03722584]
[1755504079001,4.05489636,180.82,180.81,3.11]
[1755504085305,136.54,180.83,180.81,3.11]
[1755504086814,4.05294034,180.82,180.81,3.11]
[1755504087116,136.54,180.83,180.81,3.11]
[1755504087512,371.62,180.89,180.81,3.11]
[1755504087713,146.43341216,180.88,180.81,3.11]
[1755504087916,5.4352999,180.87,180.81,3.11]
[1755504088215,4.05347786,180.86,180.81,3.11]
[1755504088414,4.05347786,180.85,180.81,3.11]
[1755504088618,136.5,180.88,180.81,3.11]
[1755504088810,5.43433864,180.87,180.81,3.11]
[1755504089008,4.05256743,180.86,180.81,3.11]
[1755504089311,4.05256743,180.85,180.81,3.11]
[1755504089514,136.5,180.88,180.81,3.11]
[1755504089812,5.42211372,180.87,180.81,3.11]
[1755504090015,4.04035543,180.86,180.81,3.11]
[1755504090314,4.04035543,180.85,180.81,3.11]
[1755504090515,136.5,180.88,180.81,3.11]
[1755504090717,5.42189025,180.87,180.81,3.11]
[1755504090914,136.5,180.88,180.81,3.11]
[1755504090915,4.04013196,180.86,180.81,3.11]
[1755504091119,4.04013196,180.85,180.81,3.11]
[1755504091312,136.5,180.88,180.81,3.11]
[1755504091513,5.42129342,180.87,180.81,3.11]
[1755504091713,4.03953749,180.86,180.81,3.11]
[1755504091913,4.03953749,180.85,180.81,3.11]
[1755504092211,136.5,180.88,180.81,3.11]
[1755504092412,4.04015396,180.87,180.81,3.11]
[1755504092612,4.04015396,180.86,180.81,3.11]
[1755504092816,4.04015396,180.85,180.81,3.11]
[1755504093013,136.5,180.88,180.81,3.11]
[1755504093214,5.42197599,180.87,180.81,3.11]
[1755504093414,4.04020714,180.86,180.81,3.11]
[1755504093617,4.04020714,180.85,180.81,3.11]
[1755504093817,136.5,180.88,180.81,3.11]
[1755504094018,5.42137582,180.87,180.81,3.11]
[1755504094215,4.03960697,180.86,180.81,3.11]
[1755504094516,4.03960697,180.85,180.81,3.11]
[1755504094716,136.5,180.88,180.81,3.11]
[1755504094912,5.4229141,180.87,180.81,3.11]
[1755504095112,4.04115817,180.86,180.81,3.11]
[1755504095316,4.04115817,180.85,180.81,3.11]
[1755504095615,136.5,180.88,180.81,3.11]
[1755504095815,4.04166049,180.87,180.81,3.11]
[1755504096117,4.04166049,180.86,180.81,3.11]
[1755504096307,136.5,180.88,180.81,3.11]
[1755504096510,4.04240709,180.87,180.81,3.11]
[1755504096712,4.04240709,180.86,180.81,3.11]
[1755504096913,136.5,180.88,180.81,3.11]
[1755504097117,4.04241168,180.87,180.81,3.11]
[1755504097320,4.04241168,180.86,180.81,3.11]
[1755504097616,136.5,180.88,180.81,3.11]
[1755504097917,4.04131996,180.87,180.81,3.11]
[1755504098215,4.04131996,180.86,180.81,3.11]
[1755504098408,136.5,180.88,180.81,3.11]
[1755504098613,4.04148719,180.87,180.81,3.11]
[1755504098812,4.04148719,180.86,180.81,3.11]
[1755504099118,136.5,180.88,180.81,3.11]
[1755504099317,4.04153243,180.87,180.81,3.11]
[1755504099619,4.04153243,180.86,180.81,3.11]
[1755504099813,136.5,180.88,180.81,3.11]
[1755504100013,4.04153035,180.87,180.81,3.11]
[1755504100214,4.04153035,180.86,180.81,3.11]
[1755504100414,136.5,180.88,180.81,8.6374]
[1755504100717,4.04133541,180.87,180.82,2.91]
[1755504100912,4.04133541,180.86,180.82,2.91]
[1755504101218,136.5,180.88,180.82,2.91]
[1755504101419,4.04104444,180.87,180.82,2.91]
[1755504101612,4.04104444,180.86,180.82,2.91]
[1755504101918,136.5,180.88,180.82,2.91]
[1755504102113,4.04089457,180.87,180.82,2.91]
[1755504102314,4.04089457,180.86,180.82,2.91]
[1755504102618,136.5,180.88,180.82,2.91]
[1755504102815,4.04036241,180.87,180.82,2.91]
[1755504103017,136.5,180.88,180.83,2.91]
[1755504103218,4.03938716,180.87,180.83,2.91]
[1755504103418,136.5,180.88,180.83,2.91]
[1755504103719,4.0389512,180.87,180.83,2.9471603]
[1755504104018,136.5,180.88,180.83,2.9471603]
[1755504104222,4.0389508,180.87,180.83,2.9471603]
[1755504104419,136.5,180.88,180.83,2.9471603]
[1755504104717,4.03857925,180.87,180.83,2.9471603]
[1755504104914,136.5,180.88,180.83,2.9471603]
[1755504105110,22.78371031,180.95,180.83,2.9471603]
[1755504105312,146.08818606,180.94,180.85,5.5259]
[1755504105621,5.41996994,180.93,180.86,2.91]
[1755504105823,4.03844496,180.92,180.89,2.91]
[1755504106120,4.03844496,180.91,180.89,2.91]
[1755504106314,136.22,180.94,180.89,2.91]
[1755504106510,4.03697961,180.93,180.89,2.91]
[1755504106717,4.03697961,180.92,180.89,2.91]
[1755504106916,136.22,180.94,180.89,2.91]
[1755504107120,4.03635817,180.93,180.89,2.91]
[1755504107319,4.03635817,180.92,180.89,2.91]
[1755504107521,136.22,180.94,180.89,2.91]
[1755504107818,4.03530266,180.93,180.89,2.91]
[1755504108012,4.03530266,180.92,180.89,2.91]
[1755504108210,136.22,180.94,180.89,2.91]
[1755504108510,4.03422353,180.93,180.89,2.91]
[1755504108709,4.03422353,180.92,180.89,2.91]
[1755504109020,136.22,180.94,180.89,2.91]
[1755504109220,4.03423412,180.93,180.89,2.91]
[1755504109421,136.22,180.94,180.88,0.03837709]
[1755504109422,136.22,180.94,180.9,2.91]
[1755504109718,4.03305655,180.93,180.89,2.91]
[1755504110019,136.22,180.94,180.89,2.91]
[1755504112921,136.22,180.94,180.89,2.87]
[1755504113620,136.22,180.94,180.88,0.03837709]
[1755504113922,4.02899428,180.93,180.88,2.90837709]
[1755504114127,4.02899428,180.92,180.88,2.90837709]
[1755504114325,152.83,180.94,180.88,2.90837709]
[1755504114626,4.02945975,180.93,180.88,2.90837709]
[1755504114826,4.02945975,180.92,180.89,2.87]
[1755504115025,152.83,180.94,180.89,2.87]
[1755504115322,4.02960714,180.93,180.89,2.87]
[1755504115526,4.02960714,180.92,180.89,2.87]
[1755504115726,152.83,180.94,180.89,2.87]
[1755504115926,4.02993871,180.93,180.89,2.87]
[1755504116224,4.02993871,180.92,180.89,2.87]
[1755504116426,152.83,180.94,180.89,2.87]
[1755504116627,4.0303628,180.93,180.89,2.87]
[1755504116827,4.0303628,180.92,180.89,2.87]
[1755504117028,152.83,180.94,180.89,2.87]
[1755504117222,4.03017013,180.93,180.89,2.87]
[1755504117421,4.03017013,180.92,180.89,2.87]
[1755504117620,152.83,180.94,180.89,2.87]
[1755504117827,4.03060145,180.93,180.89,2.87]
[1755504118024,4.03060145,180.92,180.88,0.03837709]
[1755504118224,152.83,180.94,180.88,0.03837709]
[1755504118423,4.03162693,180.93,180.89,2.87]
[1755504118624,152.83,180.94,180.89,2.87]
[1755504118932,4.0316386,180.93,180.89,2.87]
[1755504119227,152.83,180.94,180.89,2.87]
[1755504119428,3.99250124,180.93,180.89,2.87]
[1755504119625,152.83,180.94,180.89,2.87]
[1755504119824,3.99265406,180.93,180.89,2.87]
[1755504120128,152.83,180.94,180.88,0.03837709]
[1755504120330,21.98425499,180.93,180.88,0.03837709]
[1755504120630,5.37425499,180.92,180.88,0.03837709]
[1755504120827,3.99293041,180.91,180.88,2.90837709]
[1755504121130,135.98,180.9,180.88,0.03837709]
[1755504121331,135.98,180.9,180.89,2.87]
[1755504129736,135.98,180.94,180.89,2.87]
[1755504130132,16.61,180.98,180.91,2.87]
[1755504130332,3.99953598,180.97,180.91,2.87]
[1755504130636,3.99953598,180.96,180.91,2.87]
[1755504130833,135.94,180.98,180.92,0.03915488]
[1755504131033,3.99899512,180.97,180.93,2.87]
[1755504131237,3.99899512,180.96,180.93,2.87]
[1755504131534,135.94,180.98,180.93,2.87]
[1755504131733,3.99700848,180.97,180.93,2.87]
[1755504131934,3.99700848,180.96,180.93,2.87]
[1755504132136,135.94,180.98,180.93,2.87]
[1755504132331,3.99733123,180.97,180.92,0.03915488]
[1755504132535,3.99733123,180.96,180.93,2.87]
[1755504132838,135.94,180.98,180.93,2.87]
[1755504132839,3.99733123,180.95,180.93,2.87]
[1755504133036,135.94,180.98,180.93,2.87]